bitfinex/quotes_ETHUSD_20260120
["timestamp","ask_amount","ask_price","bid_price","bid_amount"]
[1768923260485,0.001,3033.9,3032.8,20.74108225]
[1768923261042,12.72974997,3034.9,3032.9,12.29391772]
[1768923261239,12.72974997,3034.9,3032.8,11.7774193]
[1768923261240,12.73074997,3034.8,3033.1,12.26094598]
[1768923261451,12.72974997,3034.6,3033.2,1.88550772]
[1768923261648,12.72974997,3034.6,3033.3,0.493]
[1768923261965,12.72974997,3034.6,3032.9,3.29712621]
[1768923261966,12.72974997,3034.2,3032.9,0.493]
[1768923262128,12.72974997,3034.2,3032.9,7.08733483]
[1768923262465,13.21574997,3034.6,3033.0,12.26094598]
[1768923263137,12.72974997,3034.4,3033.1,6.5939138]
[1768923263335,1.60251858,3034.3,3033.1,3.2969569]
[1768923263558,1.60251858,3034.3,3033.1,6.5939138]
[1768923263762,14.33226855,3034.3,3033.1,6.5939138]
[1768923263947,14.33226855,3034.3,3033.1,18.85485978]
[1768923264149,14.33226855,3034.3,3033.1,15.55790288]
[1768923264353,14.16297683,3034.2,3033.1,3.2969569]
[1768923264760,14.16297683,3034.2,3033.1,6.5939138]
[1768923265253,14.16297683,3034.2,3033.0,15.55797499]
[1768923265576,12.72974997,3034.1,3032.2,12.26094598]
[1768923265779,12.72974997,3034.1,3032.7,3.29730904]
[1768923265966,12.72974997,3033.9,3032.8,0.493]
[1768923266179,12.72974997,3033.9,3032.9,0.493]
[1768923266477,12.72974997,3033.9,3033.0,0.493]
[1768923268545,2.07545909,3034.0,3033.1,12.26094598]
[1768923268748,12.72974997,3034.2,3033.1,12.26094598]
[1768923269249,12.72974997,3034.2,3033.2,3.29684821]
[1768923269476,12.72974997,3034.2,3033.1,15.55785952]
[1768923270509,16.02555443,3034.2,3033.1,12.26094598]
[1768923270679,16.02555443,3034.2,3032.8,3.29719643]
[1768923270680,12.72974997,3034.1,3032.8,3.29719643]
[1768923270986,14.33230541,3034.1,3032.9,3.79116575]
[1768923271185,14.33230541,3034.1,3033.3,0.002]
[1768923272462,12.72974997,3034.0,3033.3,0.002]
[1768923272768,12.72974997,3033.7,3032.7,0.494]
[1768923272979,12.72974997,3033.5,3032.7,0.494]
[1768923273588,12.72974997,3033.4,3032.7,0.494]
[1768923274160,12.72974997,3033.4,3032.2,12.26094598]
[1768923274370,12.72974997,3033.4,3032.3,0.494]
[1768923274594,12.72974997,3033.4,3032.4,3.2976874]
[1768923274762,14.00272497,3033.3,3032.4,3.2976874]
[1768923275089,12.72974997,3033.7,3032.3,12.75494598]
[1768923275259,12.72974997,3033.7,3032.5,3.29752677]
[1768923275458,12.72974997,3033.7,3032.6,0.494]
[1768923275856,12.72974997,3033.7,3032.6,0.526975]
[1768923276063,12.72974997,3034.0,3032.6,14.69325168]
[1768923276380,1.60255544,3034.1,3032.6,14.69325168]
[1768923276580,12.73074997,3034.3,3032.6,14.69325168]
[1768923276973,12.72974997,3034.2,3032.6,14.69325168]
[1768923277375,16.02554237,3034.2,3032.8,12.26094598]
[1768923277890,12.72974997,3034.2,3032.8,12.26094598]
[1768923279166,12.72974997,3034.2,3032.7,9.89217528]
[1768923279167,12.72974997,3034.2,3032.9,12.29226665]
[1768923279500,14.00282497,3034.2,3033.1,3.2969569]
[1768923279798,14.00282497,3034.2,3033.2,0.494]
[1768923281296,1.273075,3034.2,3033.4,12.26094598]
[1768923281600,0.001,3034.3,3033.3,3.29673952]
[1768923281601,12.73074997,3034.3,3033.3,3.29673952]
[1768923282260,0.001,3034.3,3033.3,18.85442502]
[1768923284264,0.001,3034.3,3033.3,6.59347904]
[1768923284463,0.001,3034.3,3033.4,12.33170094]
[1768923284668,0.001,3034.3,3033.6,11.83770094]
[1768923284867,12.33903432,3034.8,3033.6,11.83770094]
[1768923285357,12.24353042,3034.7,3033.5,1.892518]
[1768923285563,12.24353042,3034.4,3032.8,12.03903815]
[1768923285762,12.24353042,3034.4,3033.0,3.29696293]
[1768923286071,12.24353042,3034.4,3033.1,3.29693343]
[1768923286267,12.24353042,3034.4,3033.0,3.29703284]
[1768923286468,6.34199847,3034.5,3032.5,12.03903815]
[1768923286469,12.24353042,3034.0,3032.5,12.03903815]
[1768923286687,12.24353042,3034.0,3031.7,6.34399847]
[1768923286688,12.24353042,3034.0,3032.6,0.494]
[1768923286888,12.24353042,3034.0,3032.7,0.494]
[1768923287464,6.34199847,3034.1,3032.7,0.494]
[1768923287465,12.24353042,3033.8,3032.7,0.494]
[1768923287786,12.73053042,3033.8,3032.7,0.494]
[1768923287980,12.24353042,3033.6,3032.7,0.494]
[1768923288891,12.24353042,3033.6,3032.7,3.79136159]
[1768923289399,14.17580097,3033.7,3032.7,3.79136159]
[1768923289904,14.17580097,3033.7,3032.7,0.494]
[1768923290909,12.24353042,3034.0,3032.8,12.03903815]
[1768923291331,14.10208331,3034.3,3033.0,12.03903815]
[1768923291609,14.10208331,3034.3,3033.3,12.03903815]
[1768923291610,1.85855289,3034.3,3033.3,12.03903815]
[1768923291810,12.24353042,3034.6,3033.4,0.494]
[1768923292387,15.53887757,3034.6,3033.4,0.494]
[1768923292805,12.24353042,3034.5,3033.4,0.494]
[1768923293608,12.24353042,3034.5,3033.4,3.79055781]
[1768923294111,12.24353042,3034.5,3033.4,3.79054721]
[1768923294332,0.001,3034.8,3033.5,12.03903815]
[1768923294479,12.24353042,3035.5,3033.5,12.03903815]
[1768923295533,12.24353042,3035.5,3033.7,12.03903815]
[1768923296003,12.24353042,3035.5,3033.9,12.03903815]
[1768923296201,12.24353042,3035.3,3034.0,1.69790381]
[1768923296404,12.24353042,3035.3,3034.0,13.73694196]
[1768923297678,12.24353042,3035.3,3034.1,6.59174054]
[1768923298420,12.24353042,3035.2,3034.0,4.99385757]
[1768923298627,12.24353042,3035.2,3034.0,19.12497081]
[1768923298792,12.24353042,3035.2,3034.1,12.03903815]
[1768923299626,12.24353042,3035.2,3034.2,3.29576165]
[1768923299794,12.24353042,3035.2,3034.2,6.5915233]
[1768923299992,12.24353042,3035.2,3034.3,1.86305615]
[1768923300295,0.001,3035.0,3034.3,1.86305615]
[1768923300544,0.001,3035.0,3034.3,13.9020943]
[1768923301316,12.24353042,3035.5,3034.3,13.9020943]
[1768923301690,12.24353042,3036.2,3034.5,12.03903815]
[1768923301892,12.24353042,3036.2,3034.7,12.03903815]
[1768923301893,13.46788346,3036.2,3034.7,12.03903815]
[1768923302091,16.76147701,3036.2,3034.7,12.03903815]
[1768923302296,13.46788346,3036.2,3034.7,12.03903815]
[1768923302912,12.24353042,3036.1,3034.7,12.03903815]
[1768923303100,13.91967931,3036.1,3034.8,0.63655882]
[1768923303413,13.91967931,3036.1,3034.6,2.19256714]
[1768923303414,12.24353042,3035.8,3034.6,2.19256714]
[1768923303600,12.24353042,3035.8,3034.7,0.494]
[1768923303601,12.24353042,3035.6,3034.7,0.494]
[1768923304210,6.58826628,3035.7,3033.6,3.29636481]
[1768923304211,12.24353042,3035.2,3033.6,3.29636481]
[1768923304420,12.24353042,3035.0,3033.7,0.494]
[1768923304787,12.24353042,3035.0,3034.1,3.29580477]
[1768923304979,12.24353042,3035.4,3034.2,12.53303815]
[1768923305223,12.24353042,3036.0,3034.7,6.59038253]
[1768923305385,12.24353042,3035.4,3033.9,0.494]
[1768923305583,12.24353042,3035.4,3033.9,0.87301174]
[1768923305814,12.24353042,3035.2,3033.9,7.46516941]
[1768923306190,12.24353042,3035.2,3033.9,19.50420756]
[1768923306520,12.24353042,3035.2,3034.0,12.03903815]
[1768923306687,12.24353042,3035.2,3034.1,2.28002951]
[1768923306882,12.24353042,3035.6,3034.3,12.03903815]
[1768923307223,0.16761489,3036.0,3034.1,2.28002951]
[1768923307224,12.24353042,3035.8,3034.1,2.28002951]
[1768923307421,12.24353042,3035.8,3034.2,0.494]
[1768923307586,12.24353042,3035.6,3034.2,0.494]
[1768923307785,12.24353042,3035.6,3033.9,3.67508187]
[1768923307786,12.24353042,3035.4,3033.9,0.37901174]
[1768923308088,12.24353042,3035.4,3034.0,0.494]
[1768923308396,12.24353042,3035.4,3033.6,3.29640821]
[1768923308594,12.24353042,3035.0,3033.2,3.29675762]
[1768923308907,12.24353042,3035.0,3033.3,0.494]
[1768923309108,12.24353042,3034.8,3033.4,0.37907576]
[1768923309316,12.24353042,3034.8,3033.4,0.87307576]
[1768923309718,12.24353042,3034.6,3033.4,0.87307576]
[1768923310027,12.24353042,3034.6,3033.5,0.03296522]
[1768923310239,12.24353042,3034.6,3033.4,0.87307576]
[1768923310443,6.5902398,3034.8,3033.0,0.002]
[1768923310444,12.24353042,3034.4,3033.5,0.494]
[1768923310625,12.24353042,3034.4,3033.6,0.494]
[1768923310922,12.24353042,3034.4,3033.0,3.29904703]
[1768923310923,12.24353042,3034.2,3033.0,0.002]
[1768923311289,12.24353042,3034.2,3033.1,0.494]
[1768923311688,12.24353042,3034.2,3033.2,3.32977894]
[1768923311890,12.24353042,3034.2,3033.3,0.71207122]
[1768923312091,12.24353042,3034.2,3033.4,0.0329663]
[1768923312290,12.24353042,3034.7,3033.3,0.71207122]
[1768923312494,12.24353042,3034.7,3033.3,12.75110937]
[1768923312730,12.24353042,3034.7,3033.4,12.03903815]
[1768923312890,12.24353042,3035.2,3033.5,13.31414909]
[1768923313091,12.24353042,3035.2,3033.7,12.03903815]
[1768923313287,12.24353042,3035.2,3033.8,0.03296196]
[1768923313733,12.24353042,3035.2,3033.8,6.59239236]
[1768923314094,0.001,3034.7,3033.8,6.59239236]
[1768923314293,12.24353042,3035.6,3033.9,12.69827739]
[1768923314506,12.24353042,3035.6,3034.1,12.03903815]
[1768923314735,12.24353042,3035.6,3034.2,12.56699576]
[1768923314937,12.24353042,3036.0,3034.4,12.47600162]
[1768923315571,12.24353042,3036.0,3034.1,6.34199847]
[1768923315572,12.24353042,3036.0,3034.5,12.97100162]
[1768923315836,12.24353042,3036.0,3034.6,1.29710016]
[1768923316149,12.24353042,3036.0,3034.7,6.59043726]
[1768923316293,12.24353042,3036.0,3034.7,19.06643888]
[1768923316498,12.24353042,3036.0,3034.8,0.495]
[1768923316702,15.33484221,3036.4,3034.8,12.97100162]
[1768923317035,1.86281237,3036.3,3034.9,1.95614389]
[1768923317338,12.04146848,3036.3,3034.9,1.95614389]
[1768923317703,12.04146848,3036.0,3034.6,1.29710016]
[1768923318037,12.04146848,3035.8,3034.7,0.495]
[1768923318252,12.04146848,3035.8,3034.7,3.79021447]
[1768923318452,12.04146848,3035.8,3034.8,0.495]
[1768923318750,12.04146848,3035.8,3034.5,3.29543045]
[1768923318751,13.24561533,3035.7,3034.9,0.495]
[1768923319373,13.24561533,3035.7,3034.7,3.29521863]
[1768923319639,12.04146848,3036.1,3035.0,0.495]
[1768923320239,12.04146848,3036.1,3035.1,3.29478435]
[1768923320417,12.04146848,3036.5,3035.1,6.5895687]
[1768923320630,13.24561533,3036.5,3035.2,0.70845687]
[1768923321130,0.488,3037.2,3035.3,12.47600162]
[1768923321131,12.04146848,3036.9,3035.3,12.47600162]
[1768923321337,12.04146848,3037.3,3035.6,6.34199847]
[1768923321631,0.73390554,3039.7,3036.2,12.47600162]
[1768923321632,3.29012305,3039.4,3036.2,12.47600162]
[1768923321840,12.04146848,3038.9,3036.5,12.47600162]
[1768923322025,12.04146848,3038.4,3036.6,0.495]
[1768923322362,12.04146848,3038.2,3036.7,3.29304837]
[1768923322544,12.04146848,3038.2,3036.7,3.78804837]
[1768923322852,12.04146848,3038.2,3036.4,0.0008]
[1768923323022,12.04146848,3037.8,3036.4,0.0008]
[1768923324147,12.04146848,3037.8,3036.4,3.29417373]
[1768923324350,12.04146848,3037.8,3036.4,6.58754746]
[1768923324528,1.20414685,3038.1,3036.4,19.06354908]
[1768923324729,16.53722379,3038.1,3036.4,19.06354908]
[1768923324943,1.9828665,3038.0,3036.5,2.40135491]
[1768923325332,1.9828665,3038.0,3036.5,14.87735653]
[1768923325564,12.04146848,3037.9,3036.5,1.90635491]
[1768923325733,12.04146848,3037.9,3036.6,0.495]
[1768923326144,12.04146848,3037.9,3036.7,6.58609674]
[1768923326333,1.9828665,3038.0,3036.7,6.58609674]
[1768923326543,12.04146848,3038.1,3036.6,3.78812221]
[1768923326746,0.001,3037.5,3036.6,3.78812221]
[1768923327558,0.001,3037.5,3036.6,7.08127903]
[1768923327939,0.001,3037.5,3036.6,3.78812221]
[1768923328142,0.001,3037.5,3036.6,3.29312221]
[1768923328359,0.001,3037.5,3036.4,0.0008]
[1768923328360,12.04246848,3037.5,3036.4,0.0008]
[1768923328939,12.04146848,3037.3,3036.1,0.0008]
[1768923329142,12.04146848,3037.3,3036.2,0.495]
[1768923329648,12.04146848,3037.3,3036.1,0.0008]
[1768923329846,0.0008,3037.4,3035.8,0.0008]
[1768923329847,12.04146848,3036.9,3035.8,0.0008]
[1768923330063,22.036031,3037.0,3035.8,0.0008]
[1768923330064,12.04146848,3036.7,3035.8,0.0008]
[1768923330439,15.33489448,3037.1,3035.8,0.0008]
[1768923330663,12.04146848,3037.0,3035.8,0.0008]
[1768923331173,12.52946848,3037.0,3035.8,0.0008]
[1768923332145,12.04146848,3036.8,3035.8,0.0008]
[1768923332344,13.90418163,3036.7,3035.8,0.0008]
[1768923332596,13.90418163,3036.7,3035.5,0.0008]
[1768923333182,13.90418163,3036.7,3035.3,0.496]
[1768923333183,12.04146848,3036.1,3034.0,12.47600162]
[1768923333341,12.04146848,3035.9,3034.7,0.494]
[1768923333674,12.04146848,3035.5,3033.9,0.65923924]
[1768923333845,12.04146848,3035.5,3034.0,0.494]
[1768923333846,12.52946848,3035.5,3034.0,0.494]
[1768923334171,12.04146848,3035.4,3034.1,3.29587027]
[1768923334389,12.04146848,3035.4,3034.0,0.494]
[1768923334550,2.712876,3035.3,3033.7,0.002]
[1768923334749,12.31275608,3035.2,3033.8,0.494]
[1768923335377,12.31275608,3035.2,3033.7,0.002]
[1768923335673,12.04146848,3035.0,3033.7,0.002]
[1768923336042,12.52946848,3035.0,3033.7,0.002]
[1768923336387,0.2712876,3035.2,3033.7,12.47800162]
[1768923336553,12.04146848,3035.4,3033.8,1.62704033]
[1768923336756,12.04146848,3034.9,3033.7,0.002]
[1768923338044,3.176594,3035.3,3033.7,0.002]
[1768923338250,3.29456725,3035.3,3033.7,0.002]
[1768923338486,12.04146848,3035.2,3033.7,0.002]
[1768923338850,12.04146848,3035.2,3033.8,0.494]
[1768923339085,13.90452878,3035.1,3033.8,0.494]
[1768923339888,3.78235791,3035.5,3033.8,0.494]
[1768923339889,12.04146848,3035.6,3033.8,12.97000162]
[1768923340060,15.33571556,3035.6,3034.0,0.002]
[1768923340265,0.001,3035.1,3034.0,0.002]
[1768923340566,0.001,3035.1,3034.0,3.2979789]
[1768923340790,12.04246848,3035.1,3034.1,0.495]
[1768923340975,0.001,3035.1,3034.1,0.495]
[1768923341178,0.001,3035.1,3034.1,12.97100162]
[1768923341380,12.04146848,3035.9,3034.2,12.50895923]
[1768923341698,0.63427985,3036.3,3034.1,6.83699847]
[1768923341699,12.67574833,3036.3,3034.6,12.47600162]
[1768923341890,12.67574833,3036.3,3034.7,12.5089538]
[1768923342090,0.0008,3036.5,3034.8,14.221897]
[1768923342289,0.0008,3036.5,3035.0,12.47600162]
[1768923342597,0.0008,3036.5,3035.1,6.5895687]
[1768923342932,0.0008,3036.5,3035.4,6.34199847]
[1768923343074,0.0008,3036.5,3035.5,12.97100162]
[1768923343268,0.0008,3036.5,3035.6,1.93130001]
[1768923344074,0.0008,3037.1,3035.6,14.76872406]
[1768923344493,11.8589549,3036.8,3035.6,1.93130001]
[1768923344685,11.8589549,3036.8,3035.7,0.495]
[1768923345374,11.8589549,3036.8,3035.6,3.29423503]
[1768923345375,11.8589549,3036.8,3035.8,0.495]
[1768923346385,15.15190738,3036.8,3035.8,0.495]
[1768923346721,12.69829102,3036.7,3035.8,0.495]
[1768923347693,12.69829102,3036.7,3035.8,3.78902389]
[1768923347906,0.0008,3036.8,3035.8,7.46195091]
[1768923348332,0.0008,3036.8,3035.9,0.495]
[1768923348499,0.0008,3036.8,3036.0,3.29380764]
[1768923348690,0.0008,3036.8,3036.0,6.58761528]
[1768923348889,0.0008,3036.8,3036.0,3.29380764]
[1768923349086,0.0008,3036.8,3036.0,4.03996712]
[1768923349396,0.0008,3036.8,3036.1,0.495]
[1768923350824,0.0008,3036.8,3035.8,0.37890239]
[1768923350995,0.0008,3036.8,3035.9,0.495]
[1768923351626,12.69909102,3036.8,3035.9,0.495]
[1768923352118,12.69909102,3036.8,3036.0,0.495]
[1768923353232,12.69909102,3036.8,3036.0,3.78878998]
[1768923353233,0.0008,3036.8,3036.0,3.78878998]
[1768923353542,0.0008,3036.8,3036.0,0.495]
[1768923353836,0.0008,3036.8,3036.0,3.78879254]
[1768923354070,0.001,3036.5,3036.0,7.79087381]
[1768923354201,0.0008,3036.8,3036.0,22.80365559]
[1768923354533,0.0008,3037.1,3036.0,22.80365559]
[1768923354534,0.0008,3037.1,3036.0,19.50984795]
[1768923354693,0.0008,3037.1,3036.0,19.01484795]
[1768923355027,12.69909102,3037.1,3036.1,0.495]
[1768923355325,13.96820012,3037.0,3036.1,0.495]
[1768923355727,13.96820012,3037.0,3036.2,0.495]
[1768923355901,13.96820012,3037.0,3035.8,3.29395591]
[1768923356103,13.96820012,3037.0,3035.9,3.78890696]
[1768923356302,13.96820012,3037.0,3035.9,3.78885817]
[1768923356502,1.39690001,3036.9,3035.9,0.495]
[1768923356703,1.39690001,3036.9,3035.9,3.78890637]
[1768923357036,1.39690001,3036.9,3035.9,3.78888049]
[1768923357219,14.09519103,3036.9,3035.9,3.78888049]
[1768923357415,12.69829102,3036.8,3036.0,0.495]
[1768923357618,14.43709606,3036.7,3034.9,3.29494303]
[1768923357798,12.69829102,3036.3,3034.3,0.002]
[1768923358001,12.69829102,3036.1,3034.4,0.495]
[1768923358599,12.69829102,3036.1,3034.3,0.002]
[1768923358834,0.488,3036.3,3034.5,3.29541254]
[1768923358835,12.69829102,3035.9,3034.5,3.29541254]
[1768923358999,12.69829102,3035.7,3034.5,4.0042162]
[1768923359198,12.69829102,3035.7,3034.5,0.70880366]
[1768923359601,12.69829102,3035.7,3034.6,0.495]
[1768923360434,12.69829102,3035.7,3034.3,0.002]
[1768923360634,12.69829102,3035.7,3034.6,0.495]
[1768923361016,12.69829102,3035.6,3034.6,0.495]
[1768923361562,12.69829102,3035.6,3034.3,0.002]
[1768923361724,12.69829102,3035.4,3034.3,0.002]
[1768923362633,12.69829102,3035.2,3034.0,0.002]
[1768923362999,12.69829102,3035.0,3034.0,0.002]
[1768923363423,1.92867163,3035.5,3034.0,0.002]
[1768923363424,12.69829102,3035.2,3034.0,0.002]
[1768923363624,1.92867163,3035.5,3034.0,0.002]
[1768923363625,12.69829102,3035.4,3034.0,0.002]
[1768923363824,12.69829102,3035.2,3034.1,0.495]
[1768923364101,13.18629102,3035.2,3034.0,0.002]
[1768923364306,12.69829102,3035.1,3034.0,0.002]
[1768923365121,12.69829102,3034.9,3034.0,0.002]
[1768923365322,13.96812012,3034.8,3034.0,0.002]
[1768923365525,12.69829102,3034.7,3033.6,0.002]
[1768923365702,19.924806,3034.2,3032.7,0.002]
[1768923365907,13.18729102,3034.1,3032.7,0.002]
[1768923366302,13.18729102,3034.5,3032.9,3.29711266]
[1768923366532,12.69829102,3034.3,3032.9,3.29712977]
[1768923366735,12.69829102,3034.3,3032.7,0.002]
[1768923367032,12.69829102,3034.1,3034.0,0.002]
[1768923367234,12.69829102,3034.1,3032.7,0.497]
[1768923367437,12.69829102,3034.1,3032.9,6.59431884]
[1768923367734,13.18729102,3034.2,3033.0,0.03497065]
[1768923368106,13.18729102,3034.2,3033.0,0.002]
[1768923368307,14.99161552,3034.2,3033.1,0.65963306]
[1768923368848,14.99161552,3034.2,3033.0,0.002]
[1768923369256,12.69829102,3034.1,3033.0,0.002]
[1768923370104,2.2933245,3034.2,3033.0,0.002]
[1768923370304,2.2933245,3034.2,3033.0,11.72097414]
[1768923370305,0.489,3034.2,3033.0,11.72097414]
[1768923370511,12.69829102,3034.5,3033.0,11.72097414]
[1768923371324,12.69829102,3034.9,3033.2,11.71897414]
[1768923371913,12.69829102,3034.9,3033.1,13.1878276]
[1768923371914,3.29470175,3035.2,3033.4,11.71897414]
[1768923372253,12.69829102,3034.6,3033.5,1.17519415]
[1768923372469,12.69829102,3034.6,3033.0,3.29906305]
[1768923372748,12.69829102,3034.6,3033.3,0.495]
[1768923373325,12.69829102,3034.5,3033.3,7.08837435]
[1768923373647,12.69829102,3034.5,3033.3,0.495]
[1768923373812,14.29765544,3034.4,3033.3,3.79171448]
[1768923374014,14.29765544,3034.4,3033.3,0.495]
[1768923374948,14.29765544,3034.4,3033.3,3.79170015]
[1768923375760,12.8570463,3034.3,3033.3,0.495]
[1768923376149,12.8570463,3034.3,3033.4,0.495]
[1768923376460,14.63224181,3034.2,3033.4,0.495]
[1768923376668,14.63224181,3034.2,3033.0,0.002]
[1768923376839,15.12124181,3034.2,3033.0,0.002]
[1768923377239,15.12124181,3034.2,3033.0,1e-08]
[1768923377439,15.12124181,3034.2,3032.6,0.002]
[1768923377440,12.8570463,3033.7,3032.6,0.002]
[1768923377650,12.8570463,3033.2,3032.0,0.002]
[1768923377850,13.3460463,3033.2,3032.0,0.002]
[1768923378260,13.3460463,3033.2,3032.0,3.30012529]
[1768923378646,13.3460463,3033.5,3032.0,3.30012529]
[1768923378954,13.3460463,3033.5,3032.1,0.03298044]
[1768923379143,0.82336204,3033.4,3032.1,0.69610632]
[1768923379652,0.82336204,3033.4,3032.2,6.59587098]
[1768923379838,0.82336204,3033.4,3032.3,13.13369865]
[1768923380041,12.8570463,3034.0,3032.3,13.13369865]
[1768923380042,12.8570463,3034.4,3032.5,12.63869865]
[1768923380454,12.8570463,3034.4,3032.6,0.495]
[1768923380636,12.8570463,3034.4,3033.3,0.002]
[1768923381545,12.8570463,3034.2,3033.3,0.002]
[1768923381757,13.3460463,3034.2,3033.3,0.002]
[1768923381956,14.52121623,3034.1,3033.3,0.002]
[1768923382156,12.8570463,3034.9,3033.3,0.497]
[1768923382362,12.8570463,3034.9,3033.3,13.13569865]
[1768923382541,16.15324639,3034.8,3033.4,0.495]
[1768923382746,12.8570463,3034.7,3033.4,0.495]
[1768923383133,0.001,3034.8,3033.4,13.13369865]
[1768923383348,0.001,3034.8,3033.5,1.31356987]
[1768923383547,0.001,3034.8,3033.5,4.61007931]
[1768923384083,0.001,3034.8,3033.6,0.495]
[1768923384954,12.8580463,3034.8,3033.7,0.495]
[1768923385147,12.8580463,3034.8,3033.6,0.495]
[1768923385348,12.8570463,3034.6,3033.6,0.495]
[1768923385787,12.8570463,3034.5,3033.6,0.495]
[1768923386849,12.8570463,3034.5,3033.3,0.002]
[1768923387182,12.8570463,3034.5,3033.3,0.497]
[1768923387980,12.8570463,3034.4,3033.3,0.497]
[1768923388178,1.61525322,3034.3,3033.3,3.79372249]
[1768923388378,12.8580463,3034.8,3033.4,12.63869865]
[1768923388578,0.001,3034.8,3033.4,12.63869865]
[1768923389560,0.001,3034.8,3033.3,6.59546201]
[1768923389561,12.8580463,3034.8,3033.3,6.59546201]
[1768923389782,12.8570463,3034.7,3033.3,0.002]
[1768923389966,12.8570463,3034.6,3033.4,0.495]
[1768923390279,1.94475548,3034.5,3033.4,0.495]
[1768923390481,0.001,3034.8,3033.4,13.13369865]
[1768923391279,0.00333,3035.0,3033.5,12.63869865]
[1768923391798,0.00333,3035.0,3033.7,12.63869865]
[1768923392170,3.7843097,3035.6,3033.8,12.63869865]
[1768923392171,0.49,3035.6,3033.8,12.63869865]
[1768923392568,3.29413314,3035.7,3033.8,12.63869865]
[1768923392900,0.001,3034.5,3034.0,12.63869865]
[1768923393069,1.61511794,3035.6,3034.1,13.13369865]
[1768923393488,0.49,3036.0,3034.1,13.13369865]
[1768923393682,12.8570463,3036.2,3034.1,13.13369865]
[1768923393906,0.001,3036.5,3034.1,13.13369865]
[1768923393907,12.8580463,3036.5,3034.5,12.63869865]
[1768923394984,12.8580463,3036.5,3034.7,12.63869865]
[1768923395988,16.15132207,3036.5,3034.9,12.63869865]
[1768923396168,1.61513221,3036.4,3035.0,1.92289188]
[1768923396805,14.47217851,3036.4,3034.5,12.63869865]
[1768923397106,12.8570463,3036.0,3034.6,0.495]
[1768923397279,12.8570463,3036.0,3034.7,3.79018041]
[1768923397481,12.8570463,3036.0,3034.7,7.08539904]
[1768923397701,12.8570463,3036.0,3034.7,3.29518041]
[1768923397915,1.28570463,3035.9,3034.9,6.59000296]
[1768923398187,14.47217851,3036.4,3034.9,19.22870161]
[1768923398701,14.47217851,3036.4,3035.0,12.63869865]
[1768923399079,1.61513221,3036.4,3035.0,12.63869865]
[1768923399403,0.001,3036.5,3035.0,12.63869865]
[1768923399902,0.001,3036.5,3035.2,12.63869865]
[1768923400117,0.001,3036.5,3035.4,12.63869865]
[1768923400275,0.001,3036.5,3035.5,0.495]
[1768923400480,0.001,3036.5,3035.5,13.13369865]
[1768923400808,0.001,3036.5,3035.6,1.31336986]
[1768923401188,0.001,3036.5,3035.6,13.95206851]
[1768923401591,0.0008,3037.1,3035.6,13.95206851]
[1768923401785,0.0008,3037.1,3035.7,12.63869865]
[1768923402011,0.0008,3037.1,3035.8,7.08304926]
[1768923402306,0.0008,3037.1,3035.9,2.30158253]
[1768923402617,0.0008,3037.1,3035.9,14.94028118]
[1768923403018,12.8570463,3039.1,3036.3,12.63869865]
[1768923403305,6.85969174,3039.2,3036.2,6.85969174]
[1768923403306,12.8570463,3039.0,3036.8,12.63869865]
[1768923403609,12.8570463,3039.0,3036.7,6.85969174]
[1768923403610,1.28570463,3038.9,3037.0,12.93636514]
[1768923404106,1.28570463,3038.9,3037.2,12.93636514]
[1768923404309,11.37339695,3039.7,3037.4,12.93636514]
[1768923404310,11.79075057,3039.4,3037.4,12.93636514]
[1768923404513,11.79075057,3039.4,3037.2,6.85969174]
[1768923404514,11.79075057,3039.4,3037.6,12.93636514]
[1768923404681,15.08087858,3039.4,3037.6,12.93636514]
[1768923404878,11.94565491,3039.3,3037.6,12.93636514]
[1768923405091,11.94565491,3039.3,3037.2,12.67753647]
[1768923405407,9.87038403,3039.4,3037.4,12.67753647]
[1768923405408,11.94565491,3039.1,3037.4,12.67753647]
[1768923406032,15.23621101,3039.0,3037.4,12.67753647]
[1768923406209,15.23621101,3039.0,3036.9,1.79762217]
[1768923406210,11.94565491,3038.9,3036.9,14.47515864]
[1768923406535,11.94565491,3038.9,3037.4,3.29223171]
[1768923406706,11.94565491,3038.9,3037.5,0.495]
[1768923406902,11.94565491,3038.9,3037.3,3.2923531]
[1768923407107,11.94565491,3038.7,3037.4,0.495]
[1768923407326,11.94565491,3038.7,3036.3,12.67753647]
[1768923407327,11.94565491,3038.3,3036.3,12.67753647]
[1768923407633,0.49,3038.7,3037.2,3.29249877]
[1768923407634,12.43565491,3038.7,3037.2,3.29249877]
[1768923407832,12.43565491,3038.7,3037.3,0.495]
[1768923408034,15.23664418,3038.6,3037.3,0.495]
[1768923408240,1.90175847,3038.5,3037.3,0.495]
[1768923408844,13.84741338,3038.5,3036.6,3.29308104]
[1768923409045,13.84741338,3038.5,3036.0,12.67753647]
[1768923409046,11.94565491,3038.0,3036.0,12.67753647]
[1768923409341,11.94565491,3038.0,3036.2,3.29351099]
[1768923409558,11.94565491,3038.0,3036.3,0.03293482]
[1768923409742,11.94565491,3037.8,3036.2,3.29351099]
[1768923410044,11.94565491,3037.8,3036.1,3.78866854]
[1768923410246,11.94565491,3037.6,3036.2,0.495]
[1768923410444,11.94565491,3037.6,3036.3,0.495]
[1768923410611,11.94565491,3037.3,3035.0,12.67753647]
[1768923410811,11.94565491,3037.1,3035.3,3.29452689]
[1768923411011,0.58811251,3037.2,3035.4,12.67753647]
[1768923411212,6.32482584,3037.4,3035.4,12.67753647]
[1768923411522,11.94565491,3037.3,3035.5,3.78926935]
[1768923411736,11.94565491,3036.9,3034.9,12.67753647]
[1768923412125,16.94982155,3037.7,3034.9,12.67753647]
[1768923412126,18.27048075,3036.7,3034.9,3.29490177]
[1768923412329,11.94565491,3036.6,3034.1,15.97334944]
[1768923412532,11.94565491,3036.4,3034.3,15.11081447]
[1768923412863,11.94565491,3036.4,3035.0,3.29488303]
[1768923413071,11.94565491,3036.2,3034.2,1.59733494]
[1768923413214,12.43565491,3036.2,3034.1,3.29580068]
[1768923413417,12.43565491,3036.2,3033.9,12.67753647]
[1768923413418,12.43565491,3036.2,3034.3,0.495]
[1768923413617,12.43565491,3036.2,3034.8,3.29504675]
[1768923413854,12.43565491,3036.2,3034.9,0.52795001]
[1768923414063,12.51039605,3036.1,3034.9,0.52795001]
[1768923414242,15.23946255,3036.0,3034.9,0.495]
[1768923414418,11.94565491,3036.0,3034.9,0.495]
[1768923414829,11.94565491,3035.8,3033.5,12.67753647]
[1768923415156,11.94565491,3035.6,3034.3,3.29565035]